fUSD/lending_fUSD_20240501
["ID","MTS","AMOUNT","RATE_DAILY","PERIOD"]
[325126317,1714528252749,-387.414449,0.00012779,2]
[325126318,1714528252759,-151.0,0.00012779,2]
[325126319,1714528252768,-249.538435,0.00012779,2]
[325126320,1714528252777,-160.11598717,0.0001278,2]
[325126321,1714528252787,-733.926139,0.0001278,2]
[325126322,1714528252796,-733.926139,0.0001278,2]
[325126323,1714528252806,-190.734781,0.0001278,2]
[325126324,1714528252815,-190.734781,0.0001278,2]
[325126325,1714528252824,-151.0,0.0001278,2]
[325126326,1714528252834,-151.0,0.0001278,2]
[325126327,1714528252843,-152.56501366,0.0001278,2]
[325126328,1714528252852,-227.338545,0.0001278,2]
[325126329,1714528252862,-227.338545,0.0001278,2]
[325126330,1714528252871,-151.0,0.0001278,2]
[325126331,1714528252879,-690.0326,0.0001278,2]
[325126332,1714528252889,-690.0326,0.0001278,2]
[325126334,1714528252898,-760.822074,0.0001278,2]
[325126335,1714528252907,-5561.55650699,0.0001278,2]
[325126336,1714528253576,-250.0,0.00011933,2]
[325126337,1714528253588,-330.84,0.00012775,2]
[325126339,1714528472205,168.7,9.922e-05,2]
[325126398,1714529041162,160.26,9.773e-05,2]
[325126487,1714529431744,-622.06813782,0.00011401,2]
[325126489,1714529431754,-179.67796345,0.00011402,2]
[325126492,1714529431766,-33.79762452,0.00011402,2]
[325126494,1714529431775,-160.51942902,0.00011502,2]
[325126497,1714529431784,-729.04,0.00011593,2]
[325126498,1714529431794,-223.47,0.00011625,2]
[325126499,1714529431803,-497.08,0.00011653,2]
[325126500,1714529431815,-200.0,0.00011653,2]
[325126501,1714529431824,-502.92,0.00011792,2]
[325126502,1714529431833,-213.47558796,0.000118,2]
[325126503,1714529431842,-172.31,0.00011829,2]
[325126504,1714529431851,-3667.3873585,0.000119,2]
[325126505,1714529431918,-443.25389344,0.000119,2]
[325126506,1714529431929,-716.59388063,0.000119,2]
[325126507,1714529431940,-2657.0803135,0.000119,2]
[325126508,1714529431951,-313.9136,0.000119,2]
[325126509,1714529432084,-6004.99475864,0.000119,2]
[325126510,1714529432095,-12009.6,0.000119,2]
[325126511,1714529432106,-1694.62264807,0.000119,2]
[325126912,1714529437909,-6244.9,0.000119,2]
[325126915,1714529437922,-405.40499995,0.000119,2]
[325126932,1714529438096,-25585.61155686,0.000119,2]
[325126934,1714529438108,-1532.91076219,0.000119,2]
[325126936,1714529438122,-7468.20210924,0.000119,2]
[325126937,1714529438276,-1777.0,0.000119,2]
[325126938,1714529438292,-9385.48613105,0.000119,2]
[325126939,1714529438302,-358.73343022,0.000119,2]
[325126940,1714529438312,-188.46526716,0.000119,2]
[325126941,1714529438321,-499.99,0.000119,2]
[325126942,1714529438331,-7500.0,0.000119,2]
[325126943,1714529438340,-166.01,0.0001199,2]
[325126944,1714529438349,-1130.38332252,0.00011998,2]
[325126945,1714529438360,-237.05608223,0.00011998,2]
[325126946,1714529438371,-767.8903537,0.00011998,2]
[325126947,1714529438381,-167.7537718,0.00011998,2]
[325126948,1714529438391,-165.18762693,0.00011998,2]
[325126949,1714529438400,-155.26640392,0.00011998,2]
[325126950,1714529438410,-168.91028045,0.00011998,2]
[325126951,1714529438420,-466.92769895,0.00011998,2]
[325126952,1714529438429,-155.2281969,0.00011998,2]
[325126953,1714529438438,-216.58975844,0.00011998,2]
[325126954,1714529438448,-215.52248085,0.00011998,2]
[325126955,1714529438458,-166.02874233,0.00011998,2]
[325126956,1714529438467,-4174.37248907,0.00011999,2]
[325126957,1714529438477,-500.0,0.00011999,2]
[325126958,1714529438487,-500.0,0.00011999,2]
[325126959,1714529438496,-500.0,0.00011999,2]
[325126960,1714529438505,-500.0,0.00011999,2]
[325126961,1714529438515,-500.0,0.00011999,2]
[325126962,1714529438524,-537.14947142,0.00011999,2]
[325126963,1714529438533,-519.48,0.00011999,2]
[325126964,1714529438542,-500.0,0.00011999,2]
[325126965,1714529438552,-500.0,0.00011999,2]
[325126967,1714529438562,-500.0,0.00011999,2]
[325126969,1714529438579,-1059.61,0.00011999,2]
[325126971,1714529438588,-500.0,0.00011999,2]
[325126973,1714529438597,-500.0,0.00011999,2]
[325126974,1714529438606,-500.0,0.00011999,2]
[325126975,1714529438616,-599.18,0.00011999,2]
[325126976,1714529438625,-500.0,0.00011999,2]
[325126977,1714529438634,-703.43,0.00011999,2]
[325126978,1714529438643,-972.89,0.00011999,2]
[325126979,1714529438651,-550.3,0.00011999,2]
[325126980,1714529438660,-865.28,0.00011999,2]
[325126981,1714529438669,-500.0,0.00011999,2]
[325126982,1714529438678,-500.0,0.00011999,2]
[325126983,1714529438687,-1116.17,0.00011999,2]
[325126984,1714529438696,-557.88563807,0.00011999,2]
[325126985,1714529438705,-500.0,0.00011999,2]
[325126986,1714529438715,-500.0,0.00011999,2]
[325126987,1714529438724,-500.0,0.00011999,2]
[325126988,1714529438733,-500.0,0.00011999,2]
[325126989,1714529438743,-500.0,0.00011999,2]
[325126990,1714529438752,-500.0,0.00011999,2]
[325126991,1714529438761,-4799.78,0.00011999,2]
[325126992,1714529438771,-500.0,0.00011999,2]
[325126993,1714529438781,-993.87,0.00011999,2]
[325126994,1714529438790,-500.0,0.00011999,2]
[325126995,1714529438799,-500.99752713,0.00011999,2]
[325126996,1714529438808,-480.0,0.00011999,2]
[325126997,1714529438820,-619.42,0.00011999,2]
[325126998,1714529438829,-521.63744677,0.00011999,2]
[325126999,1714529438838,-500.0,0.00011999,2]
[325127000,1714529438847,-500.0,0.00011999,2]
[325127001,1714529438857,-523.18766727,0.00011999,2]
[325127002,1714529438866,-500.0,0.00011999,2]
[325127003,1714529438878,-500.0,0.00011999,2]
[325127004,1714529438887,-500.0,0.00011999,2]
[325127005,1714529438897,-5874.712799,0.00012,2]
[325127006,1714529438906,-427702.47309673,0.00012,2]
[325127010,1714529440015,-4815.04681779,0.00012,2]
[325127011,1714529440195,-2536.10208,0.00012,2]
[325127012,1714529440209,-838.84059321,0.00012,2]
[325127013,1714529440351,-2959.64473179,0.00012,2]
[325127014,1714529440364,-7746.79996546,0.00012,2]
[325127075,1714529443061,-582.0246578,0.00011999,2]
[325127076,1714529443072,-310.00751265,0.00012,2]
[325127077,1714529443110,-500.0,0.00011999,2]
[325127078,1714529443119,-2662.12873376,0.00012,2]
[325127079,1714529443130,-11769.42124742,0.00012,2]
[325127080,1714529443265,-500.0,0.00011999,2]
[325127081,1714529443276,-18.34838996,0.00011999,2]
[325127082,1714529443288,-1234.30161004,0.00012,2]
[325127083,1714529443302,-499.21105787,0.00012,2]
[325127092,1714529444313,-6660.30326795,0.00012,2]
[325127093,1714529444327,-300.3,0.00012,2]
[325127095,1714529445824,-417.11,0.000119,2]
[325127096,1714529445996,-427.06674038,0.000119,2]
[325127097,1714529446007,-1753.30415962,0.000119,2]
[325127098,1714529446016,-1729.31,0.00011999,2]
[325127099,1714529446025,-543.93,0.00011999,2]
[325127100,1714529446034,-2228.15584038,0.00012,2]
[325127101,1714529455227,155.0,9.773e-05,2]
[325127102,1714529459697,547.10066299,0.0001,2]
[325127103,1714529469916,20182.90917099,9.773e-05,2]
[325127104,1714529470907,19687.30218531,9.773e-05,2]
[325127105,1714529558043,174.25,9.751e-05,2]
[325127127,1714529890511,-5350.0,0.0001298,25]
[325127128,1714529890581,-2396.0,0.0001298,26]
[325127129,1714530024842,165.53,9.148e-05,2]
[325127193,1714530509623,157.25,8.8e-05,2]
[325127253,1714530632055,-622.06813782,0.00010688,2]
[325127254,1714530632064,-155.0,0.00010688,2]
[325127255,1714530632074,-1295.02080291,0.00010688,2]
[325127256,1714530632083,-250.0,0.00010689,2]
[325127257,1714530632092,-150.0,0.00010721,2]
[325127258,1714530632101,-717.74613863,0.00010722,2]
[325127259,1714530632111,-5534.54386137,0.00010722,2]
[325127260,1714530632120,-602.33,0.00010744,2]
[325127261,1714530632130,-153.0,0.00010751,2]
[325127262,1714530632139,-2973.75603321,0.00010753,2]
[325127263,1714530632148,-1785.29637158,0.00010753,2]
[325127264,1714530632157,-737.92,0.00010756,2]
[325127265,1714530632166,-3426.7719,0.0001077,2]
[325127266,1714530632175,-190.09,0.00010861,2]
[325127267,1714530632184,-172.31,0.00010873,2]
[325127268,1714530632193,-150.0,0.00010959,2]
[325127269,1714530632202,-200.0,0.00010959,2]
[325127270,1714530632211,-397.67,0.00010973,2]
[325127271,1714530632220,-299.99,0.00010973,2]
[325127272,1714530632229,-157.25,0.00011064,2]
[325127273,1714530632238,-1135.9749436,0.00011385,2]
[325127274,1714530632247,-177.55,0.00011492,2]
[325127275,1714530632256,-838.63,0.000115,2]
[325127276,1714530632265,-499.99,0.00011849,2]
[325127277,1714530632275,-2661.40051513,0.00011878,2]
[325127278,1714530632287,-171.4116,0.00011899,2]
[325127279,1714530632295,-1439.2859,0.00011899,2]
[325127280,1714530632304,-7500.0,0.00011899,2]
[325127281,1714530632313,-2568.1004,0.000119,2]
[325127282,1714530632322,-10606.1915,0.000119,2]
[325127283,1714530632331,-7229.0889,0.000119,2]
[325127284,1714530632340,-1421.3217,0.000119,2]
[325127285,1714530632350,-200.06408953,0.00011986,2]
[325127286,1714530632360,-200.06408953,0.00011986,2]
[325127287,1714530632369,-200.06408953,0.00011986,2]
[325127288,1714530632579,-200.06408953,0.00011986,2]
[325127290,1714530632589,-200.06408953,0.00011986,2]
[325127292,1714530632599,-200.06408953,0.00011986,2]
[325127294,1714530632607,-200.06408953,0.00011986,2]
[325127296,1714530632616,-200.06408953,0.00011986,2]
[325127298,1714530632625,-200.06408953,0.00011986,2]
[325127300,1714530632637,-200.06408953,0.00011986,2]
[325127302,1714530632647,-200.06408953,0.00011986,2]
[325127304,1714530632656,-200.06408953,0.00011986,2]
[325127306,1714530632666,-200.06408953,0.00011986,2]
[325127308,1714530632675,-200.06408953,0.00011986,2]
[325127310,1714530632684,-200.06408953,0.00011986,2]
[325127312,1714530632693,-200.06408953,0.00011987,2]
[325127313,1714530632702,-200.06408953,0.00011987,2]
[325127315,1714530632711,-200.06408953,0.00011987,2]
[325127317,1714530632721,-200.06408953,0.00011987,2]
[325127319,1714530632731,-200.06408953,0.00011987,2]
[325127321,1714530632741,-200.06408953,0.00011987,2]
[325127323,1714530632750,-200.06408953,0.00011987,2]
[325127325,1714530632759,-200.06408953,0.00011987,2]
[325127327,1714530632769,-200.06408953,0.00011987,2]
[325127329,1714530632778,-200.06408953,0.00011987,2]
[325127331,1714530632788,-200.06408953,0.00011987,2]
[325127333,1714530632797,-200.06408953,0.00011987,2]
[325127334,1714530632806,-200.06408953,0.00011987,2]
[325127336,1714530632816,-200.06408953,0.00011987,2]
[325127338,1714530632825,-200.06408953,0.00011987,2]
[325127340,1714530632834,-200.06408953,0.00011987,2]
[325127342,1714530632844,-200.06408953,0.00011987,2]
[325127344,1714530632853,-200.06408953,0.00011987,2]
[325127346,1714530632862,-200.06408953,0.00011987,2]
[325127348,1714530632872,-200.06408953,0.00011987,2]
[325127350,1714530632881,-200.06408953,0.00011987,2]
[325127352,1714530632889,-200.06408953,0.00011987,2]
[325127354,1714530632899,-200.06408953,0.00011987,2]
[325127356,1714530632908,-200.06408953,0.00011987,2]
[325127357,1714530632917,-200.06408953,0.00011987,2]
[325127359,1714530632926,-200.06408953,0.00011987,2]
[325127360,1714530632935,-200.06408953,0.00011987,2]
[325127361,1714530632944,-200.06408953,0.00011987,2]
[325127362,1714530632954,-200.06408953,0.00011987,2]
[325127363,1714530632963,-200.06408953,0.00011987,2]
[325127364,1714530632972,-200.06408953,0.00011987,2]
[325127365,1714530632981,-200.06408953,0.00011987,2]
[325127366,1714530632991,-200.06408953,0.00011987,2]
[325127367,1714530633000,-200.06408953,0.00011987,2]
[325127368,1714530633009,-200.06408953,0.00011987,2]
[325127369,1714530633018,-166.01,0.00011987,2]
[325127370,1714530633027,-500.0,0.00011996,2]
[325127372,1714530633037,-500.0,0.00011996,2]
[325127374,1714530633046,-486.95014644,0.00011996,2]
[325127376,1714530633055,-503.71238087,0.00011996,2]
[325127378,1714530633066,-500.12754142,0.00011996,2]
[325127379,1714530633075,-530.7390735,0.00011996,2]
[325127382,1714530633084,-500.0,0.00011996,2]
[325127384,1714530633093,-541.03452021,0.00011996,2]
[325127385,1714530633102,-500.0,0.00011996,2]
[325127388,1714530633112,-505.50152062,0.00011996,2]
[325127389,1714530633121,-500.0,0.00011996,2]
[325127391,1714530633130,-500.0,0.00011996,2]
[325127393,1714530633139,-540.26992017,0.00011996,2]
[325127395,1714530633148,-500.0,0.00011996,2]
[325127398,1714530633158,-270.44201583,0.00011996,2]
[325127399,1714530633167,-511.42814762,0.00011996,2]
[325127401,1714530633176,-500.0,0.00011996,2]
[325127403,1714530633186,-536.67958819,0.00011996,2]
[325127406,1714530633195,-548.32501434,0.00011996,2]
[325127408,1714530633204,-500.0,0.00011996,2]
[325127410,1714530633213,-510.71167879,0.00011996,2]
[325127411,1714530633222,-500.0,0.00011996,2]
[325127414,1714530633231,-500.0,0.00011996,2]
[325127416,1714530633241,-500.0,0.00011996,2]
[325127418,1714530633250,-500.0,0.00011996,2]
[325127420,1714530633260,-505.63483614,0.00011996,2]
[325127422,1714530633270,-513.45836246,0.00011996,2]
[325127424,1714530633279,-450.0,0.00011996,2]
[325127426,1714530633290,-500.0,0.00011996,2]
[325127427,1714530633299,-506.42102173,0.00011996,2]
[325127430,1714530633308,-150.0,0.00011996,2]
[325127432,1714530633318,-509.49648499,0.00011996,2]
[325127434,1714530633327,-500.0,0.00011996,2]
[325127436,1714530633336,-536.5329274,0.00011996,2]
[325127438,1714530633345,-500.0,0.00011996,2]
[325127440,1714530633354,-508.0553703,0.00011996,2]
[325127442,1714530633364,-539.24686396,0.00011996,2]
[325127444,1714530633373,-517.55578911,0.00011996,2]
[325127446,1714530633382,-503.55669278,0.00011996,2]
[325127448,1714530633391,-500.0,0.00011996,2]
[325127450,1714530633400,-506.65398112,0.00011996,2]
[325127452,1714530633409,-524.92414924,0.00011996,2]
[325127454,1714530633418,-500.0,0.00011996,2]
[325127456,1714530633427,-500.0,0.00011996,2]
[325127458,1714530633436,-227.06387243,0.00011996,2]
[325127460,1714530633445,-500.0,0.00011996,2]
[325127462,1714530633454,-386.03928725,0.00011996,2]
[325127464,1714530633463,-504.97918747,0.00011996,2]
[325127466,1714530633472,-500.0,0.00011996,2]
[325127468,1714530633481,-500.0,0.00011996,2]
[325127470,1714530633493,-500.0,0.00011996,2]
[325127472,1714530633502,-504.6256968,0.00011996,2]
[325127474,1714530633510,-500.0,0.00011996,2]
[325127476,1714530633519,-564.70957071,0.00011996,2]
[325127478,1714530633528,-500.0,0.00011996,2]
[325127480,1714530633537,-500.0,0.00011996,2]
[325127482,1714530633546,-527.61,0.00011996,2]
[325127484,1714530633555,-490.0,0.00011996,2]
[325127486,1714530633565,-507.90618447,0.00011996,2]
[325127488,1714530633574,-503.32161704,0.00011996,2]
[325127490,1714530633583,-500.0,0.00011996,2]
[325127492,1714530633592,-500.0,0.00011996,2]
[325127494,1714530633601,-502.10242246,0.00011996,2]
[325127496,1714530633610,-500.0,0.00011996,2]
[325127498,1714530633619,-500.0,0.00011996,2]
[325127500,1714530633628,-503.79370578,0.00011996,2]
[325127501,1714530633637,-500.0,0.00011996,2]
[325127503,1714530633652,-500.0,0.00011996,2]
[325127505,1714530633660,-500.0,0.00011996,2]
[325127507,1714530633671,-500.0,0.00011996,2]
[325127510,1714530633680,-500.0,0.00011996,2]
[325127512,1714530633691,-500.0,0.00011996,2]
[325127514,1714530633700,-500.0,0.00011996,2]
[325127516,1714530633710,-500.0,0.00011996,2]
[325127518,1714530633719,-504.04137011,0.00011996,2]
[325127520,1714530633729,-503.57246091,0.00011996,2]
[325127522,1714530633739,-525.98317492,0.00011996,2]
[325127524,1714530633749,-501.48409592,0.00011996,2]
[325127526,1714530633758,-500.0,0.00011996,2]
[325127528,1714530633767,-500.0,0.00011996,2]
[325127530,1714530633777,-500.0,0.00011996,2]
[325127532,1714530633789,-500.0,0.00011996,2]
[325127534,1714530633798,-500.0,0.00011996,2]
[325127536,1714530633807,-505.01022369,0.00011996,2]
[325127538,1714530633816,-500.0,0.00011996,2]
[325127540,1714530633825,-500.0,0.00011996,2]
[325127542,1714530633834,-502.78063498,0.00011996,2]
[325127544,1714530633843,-500.0,0.00011996,2]
[325127546,1714530633853,-501.46647079,0.00011996,2]
[325127548,1714530633862,-500.0,0.00011996,2]
[325127550,1714530633871,-498.51374418,0.00011996,2]
[325127552,1714530633882,-500.0,0.00011996,2]
[325127554,1714530633891,-500.0,0.00011996,2]
[325127556,1714530633900,-503.17440657,0.00011996,2]
[325127558,1714530633910,-500.0,0.00011996,2]
[325127560,1714530633919,-500.0,0.00011996,2]
[325127562,1714530633927,-502.94158931,0.00011996,2]
[325127564,1714530633937,-500.0,0.00011996,2]
[325127566,1714530633946,-500.0,0.00011996,2]
[325127568,1714530633955,-500.0,0.00011996,2]
[325127570,1714530633964,-500.0,0.00011996,2]
[325127572,1714530633973,-520.83575288,0.00011996,2]
[325127574,1714530633983,-500.0,0.00011996,2]
[325127576,1714530633992,-500.0,0.00011996,2]
[325127578,1714530634001,-484.21267473,0.00011996,2]
[325127580,1714530634010,-497.83931543,0.00011996,2]
[325127582,1714530634019,-513.59284116,0.00011996,2]
[325127584,1714530634028,-517.36528689,0.00011996,2]
[325127586,1714530634038,-501.11475722,0.00011996,2]
[325127588,1714530634047,-500.97389123,0.00011996,2]
[325127590,1714530634055,-500.56912454,0.00011996,2]
[325127592,1714530634064,-500.0,0.00011996,2]
[325127594,1714530634073,-500.0,0.00011996,2]
[325127596,1714530634083,-500.0,0.00011996,2]
[325127598,1714530634092,-500.0,0.00011996,2]
[325127599,1714530634101,-500.0,0.00011996,2]
[325127602,1714530634111,-501.16839136,0.00011996,2]
[325127604,1714530634119,-546.39860332,0.00011996,2]
[325127606,1714530634129,-500.0,0.00011996,2]
[325127608,1714530634138,-501.53147799,0.00011996,2]
[325127609,1714530634147,-500.0,0.00011996,2]
[325127611,1714530634156,-500.51644908,0.00011996,2]
[325127613,1714530634165,-500.0,0.00011996,2]
[325127615,1714530634174,-501.19542572,0.00011996,2]
[325127617,1714530634183,-508.59430553,0.00011996,2]
[325127619,1714530634192,-500.0,0.00011996,2]
[325127621,1714530634201,-418.78408671,0.00011996,2]
[325127623,1714530634211,-986.46,0.00011996,2]
[325127625,1714530634219,-502.00715635,0.00011996,2]
[325127628,1714530634229,-500.0,0.00011996,2]
[325127629,1714530634238,-500.42709793,0.00011996,2]
[325127632,1714530634247,-534.48630275,0.00011996,2]
[325127633,1714530634257,-500.0,0.00011996,2]
[325127636,1714530634266,-531.30333086,0.00011996,2]
[325127638,1714530634275,-501.34368621,0.00011996,2]
[325127640,1714530634284,-500.0,0.00011996,2]
[325127642,1714530634295,-500.42769666,0.00011996,2]
[325127643,1714530634304,-502.52624638,0.00011996,2]
[325127645,1714530634313,-500.0,0.00011996,2]
[325127647,1714530634322,-500.0,0.00011996,2]
[325127649,1714530634332,-500.0,0.00011996,2]
[325127651,1714530634341,-500.0,0.00011996,2]
[325127653,1714530634350,-232.25640683,0.00011996,2]
[325127655,1714530634358,-527.74135302,0.00011996,2]
[325127657,1714530634367,-500.0,0.00011996,2]
[325127660,1714530634376,-500.0,0.00011996,2]
[325127662,1714530634387,-500.0,0.00011996,2]
[325127664,1714530634396,-502.36597359,0.00011996,2]
[325127666,1714530634405,-582.23,0.00011996,2]
[325127668,1714530634415,-500.0,0.00011996,2]
[325127669,1714530634424,-500.0,0.00011996,2]
[325127672,1714530634433,-501.48929917,0.00011996,2]
[325127674,1714530634442,-502.58459206,0.00011996,2]
[325127675,1714530634451,-500.0,0.00011996,2]
[325127678,1714530634461,-167.36197676,0.00011996,2]
[325127679,1714530634470,-500.0,0.00011996,2]
[325127682,1714530634479,-500.0,0.00011996,2]
[325127684,1714530634489,-500.0,0.00011996,2]
[325127685,1714530634498,-500.0,0.00011996,2]
[325127688,1714530634507,-500.0,0.00011996,2]
[325127689,1714530634516,-500.0,0.00011996,2]
[325127691,1714530634525,-688.07,0.00011996,2]
[325127694,1714530634534,-500.0,0.00011996,2]
[325127695,1714530634544,-807.07,0.00011996,2]
[325127697,1714530634553,-626.62,0.00011996,2]
[325127700,1714530634562,-525.1672869,0.00011996,2]
[325127701,1714530634572,-500.0,0.00011996,2]
[325127703,1714530634580,-502.2092143,0.00011996,2]
[325127705,1714530634590,-546.27663589,0.00011996,2]
[325127707,1714530634599,-500.62658706,0.00011996,2]
[325127709,1714530634608,-500.0,0.00011996,2]
[325127711,1714530634617,-500.0,0.00011996,2]
[325127712,1714530634625,-500.0,0.00011996,2]
[325127713,1714530634636,-345.96227538,0.00011996,2]
[325127714,1714530634647,-500.0,0.00011996,2]
[325127715,1714530634656,-500.0,0.00011996,2]
[325127716,1714530634664,-539.6,0.00011996,2]
[325127717,1714530634673,-500.0,0.00011996,2]
[325127718,1714530634683,-502.32906328,0.00011996,2]
[325127719,1714530634692,-500.0,0.00011996,2]
[325127720,1714530634701,-500.0,0.00011996,2]
[325127721,1714530634710,-501.81832755,0.00011996,2]
[325127722,1714530634719,-500.0,0.00011996,2]
[325127723,1714530634729,-518.71237393,0.00011996,2]
[325127724,1714530634739,-500.0,0.00011996,2]
[325127725,1714530634747,-500.0,0.00011996,2]
[325127726,1714530634756,-505.04081932,0.00011996,2]
[325127727,1714530634765,-500.0,0.00011996,2]
[325127728,1714530634774,-501.34138287,0.00011996,2]
[325127729,1714530634783,-500.0,0.00011996,2]
[325127730,1714530634792,-1266.11,0.00011996,2]
[325127731,1714530634801,-548.48,0.00011996,2]
[325127732,1714530634812,-530.62333051,0.00011996,2]
[325127733,1714530634821,-517.42,0.00011996,2]
[325127734,1714530634830,-500.0,0.00011996,2]
[325127735,1714530634839,-500.0,0.00011996,2]
[325127736,1714530634848,-500.0,0.00011996,2]
[325127737,1714530634857,-1482.39,0.00011996,2]
[325127738,1714530634866,-784.46,0.00011996,2]
[325127739,1714530634875,-501.02170357,0.00011996,2]
[325127740,1714530634884,-500.0,0.00011996,2]
[325127741,1714530634893,-511.32787605,0.00011996,2]
[325127742,1714530634902,-500.0,0.00011996,2]
[325127743,1714530634911,-284.72059416,0.00011996,2]
[325127744,1714530634921,-500.0,0.00011996,2]
[325127745,1714530634930,-498.08139907,0.00011996,2]
[325127746,1714530634940,-500.0,0.00011996,2]
[325127747,1714530634950,-1532.43,0.00011996,2]
[325127748,1714530634959,-536.13839878,0.00011996,2]
[325127749,1714530634968,-966.2,0.00011996,2]
[325127750,1714530634977,-500.0,0.00011996,2]
[325127751,1714530634987,-529.67,0.00011996,2]
[325127752,1714530634996,-500.0,0.00011996,2]
[325127753,1714530635004,-2187.04,0.00011996,2]
[325127754,1714530635014,-500.0,0.00011996,2]
[325127755,1714530635024,-583.19156004,0.00011996,2]
[325127756,1714530635033,-500.0,0.00011996,2]
[325127757,1714530635043,-1062.26,0.00011996,2]
[325127758,1714530635053,-112.64527984,0.00011996,2]
[325127759,1714530635100,-318.64482262,0.00011996,2]
[325127760,1714530635111,-47.5021057,0.00011996,2]
[325127761,1714530635121,-256.50794154,0.00011996,2]
[325127762,1714530635132,-243.49205846,0.00011996,2]
[325127763,1714530635141,-500.0,0.00011996,2]
[325127764,1714530635150,-456.29607221,0.00011996,2]
[325127765,1714530635176,-140.38392779,0.00011996,2]
[325127766,1714530635185,-625.8910334,0.00011996,2]
[325127767,1714530635194,-1010.5,0.00011996,2]
[325127768,1714530635204,-500.0,0.00011996,2]
[325127769,1714530635213,-491.81481887,0.00011996,2]
[325127770,1714530635223,-500.0,0.00011996,2]
[325127771,1714530635232,-481.59658269,0.00011996,2]
[325127772,1714530635242,-500.0,0.00011996,2]
[325127773,1714530635251,-91.22235192,0.00011996,2]
[325127774,1714530635263,-408.77764808,0.00011996,2]
[325127775,1714530635272,-595.05,0.00011996,2]
[325127776,1714530635282,-500.0,0.00011996,2]
[325127777,1714530635292,-88.53035192,0.00011996,2]
[325127778,1714530635304,-411.46964808,0.00011996,2]
[325127779,1714530635314,-905.22,0.00011996,2]
[325127780,1714530635323,-406.80438095,0.00011996,2]
[325127781,1714530635335,-94.71906803,0.00011996,2]
[325127782,1714530635344,-500.0,0.00011996,2]
[325127783,1714530635353,-118.08093197,0.00011996,2]
[325127795,1714530639049,-400.0,0.000118,4]
[325127796,1714530639058,-405.00005,0.00011996,2]
[325127797,1714530639069,-250.4733839,0.00011996,2]
[325127798,1714530639682,-401.1233,0.000119,4]
[325127799,1714530639694,-398.8767,0.000119,4]
[325127800,1714530639704,-10.01563413,0.00011996,2]
[325127801,1714530639713,-694.95,0.00011996,2]
[325127802,1714530639723,-596.83671354,0.00011996,2]
[325127803,1714530639734,-500.0,0.00011996,2]
[325127804,1714530639743,-953.91,0.00011996,2]
[325127805,1714530639752,-1832.41,0.00011996,2]
[325127806,1714530639762,-5541.94,0.00011996,2]
[325127807,1714530639771,-548.2,0.00011996,2]
[325127808,1714530639780,-500.0,0.00011996,2]
[325127809,1714530639789,-894.44,0.00011996,2]
[325127810,1714530639799,-500.0,0.00011996,2]
[325127811,1714530639809,-502.27453874,0.00011996,2]
[325127812,1714530639818,-500.0,0.00011996,2]
[325127813,1714530639828,-580.91054567,0.00011996,2]
[325127814,1714530639838,-500.0,0.00011996,2]
[325127815,1714530639847,-500.0,0.00011996,2]
[325127816,1714530639856,-500.0,0.00011996,2]
[325127817,1714530639866,-500.37987501,0.00011996,2]
[325127818,1714530639875,-500.0,0.00011996,2]
[325127819,1714530639884,-1104.3,0.00011996,2]
[325127821,1714530639893,-504.82150594,0.00011996,2]
[325127823,1714530639902,-500.0,0.00011996,2]
[325127824,1714530639911,-568.92448071,0.00011996,2]
[325127825,1714530639920,-500.0,0.00011996,2]
[325127826,1714530639929,-500.0,0.00011996,2]